{"text_format":"3","workbook":"xlsx","n_sheets":1,"sheets":["Tabelle1"],"not_rendered":{"images":2,"macros":1,"defined_names":1,"comments":1},"read":"whole","date_system":"1900"}

{"sheet":"Tabelle1","index":0,"n_rows":36,"n_cols":17,"rows_kept":36,"merged":[[4,3,4,5],[4,6,4,8],[12,1,12,5],[13,1,13,5],[14,1,14,5],[16,1,16,5],[17,1,17,5],[18,1,18,5],[19,1,19,5],[20,1,20,5],[21,1,21,5],[22,1,22,5],[23,1,23,5],[24,1,24,5],[25,1,25,5],[29,1,29,5],[30,1,30,5],[32,1,32,5],[33,1,33,5],[35,1,35,5]]}
[null,"Antragstellung und Prüfung der Antragsvoraussetzungen (bis 31. August 2020)"]
[{"$nulls":14},"bis zu 5",1," =Regelförderung"]
[null,"Beschäftigte zum 29. Februar 2020",{"$nulls":4},"maximale Förderung für drei Monate: ",null,null,{"$f":"IF(P2=1,P3,IF(P2=2,P4,IF(P2=3,P5)))","v":{"v":9000,"d":"9,000.00 €"}},{"$nulls":4},"bis zu 10",9000," =Regelförderung (ggfs. gekappt bei maximal mtl. EUR 3.000)"]
[{"$nulls":14},"mehr als 10",15000," =Regelförderung (ggfs. gekappt bei maximal mtl. EUR 5.000)"]
[{"$nulls":3},"Antragsberechtigung",null,null,"Schätzung Förderzeitraum",null,null,"Förderung",{"$nulls":5},150000," =Regelförderung (ggfs. gekappt bei maximal mtl. EUR 50.000)"]
[null,"Bezeichnung",null,"April","Mai","kumuliert","Juni","Juli","August","Antrag"]
[null,"Berechnung der Antragsberechtigung und Umsatzschätzung für den Förderzeitraum"]
[null,"Umsatzerlöse 2020",{"$nulls":3},{"$f":"SUM(D8:E8)","v":{"v":0,"d":"0.00"}},{"$nulls":3},{"$f":"SUM(G8:I8)","v":{"v":0,"d":"0.00"}}]
[null,"Umsatzerlöse 2019",{"$nulls":3},{"$f":"SUM(D9:E9)","v":{"v":0,"d":"0.00"}},{"$nulls":3},{"$f":"SUM(G9:I9)","v":{"v":0,"d":"0.00"}}]
[null,"Veränderung in %",null,{"$f":"AbweichungInProzent(D8,D9)","v":{"v":0,"d":"0.00"}},{"v":0,"d":"0.00"},{"v":0,"d":"0.00"},{"v":0,"d":"0.00"},{"v":0,"d":"0.00"},{"v":0,"d":"0.00"},{"v":0,"d":"0.00"}]
[]
[null,"Ermittlung erstattungsfähiger Fixkosten"]
["1.","Mieten und Pachten für Gebäude, Grundstücke und Räumlichkeiten, die in unmittelbarem Zusammenhang mit der Geschäftstätigkeit des Unternehmens stehen.\nKosten für Privaträume sind nicht förderfähig.",{"$nulls":7},{"$f":"SUM(G13:I13)","v":{"v":0,"d":"0.00"}}]
["2.","weitere Mietkosten",{"$nulls":7},{"$f":"SUM(G14:I14)","v":{"v":0,"d":"0.00"}},{"$nulls":4},"Unternehmen gegründet vor Mai 2019",1]
["3.","Zinsaufwendungen für Kredite und Darlehen",{"$nulls":7},{"v":0,"d":"0.00"},{"$nulls":4},"Unternehmen gegründet im Mai oder Juni 2019"]
["4.","Finanzierungskostenanteil von Leasingraten",{"$nulls":7},{"v":0,"d":"0.00"},{"$nulls":4},"Unternehmen gegründet nach Juni 2019"]
["5.","Ausgaben für notwendige Instandhaltung, Wartung oder Einlagerung von Anlagevermögen oder gemieteten Vermögensgegenständen, einschließlich der EDV ",{"$nulls":7},{"v":0,"d":"0.00"}]
["6.","Ausgaben für Elektrizität, Wasser, Heizung, Reinigung und Hygienemaßnahmen",{"$nulls":7},{"v":0,"d":"0.00"}]
["7.","Grundsteuern",{"$nulls":7},{"v":0,"d":"0.00"}]
["8.","Betriebliche Lizenzgebühren",{"$nulls":7},{"v":0,"d":"0.00"}]
["9.","Versicherungen, Abonnements und andere feste Ausgaben",{"$nulls":7},{"v":0,"d":"0.00"}]
["10.","Kosten für Steuerberater oder Wirtschaftsprüfer, die im Rahmen der Beantragung der Corona-Überbrückungshilfe anfallen",{"$nulls":7},{"v":0,"d":"0.00"}]
["11.","Personalaufwendungen",{"$nulls":7},{"v":0,"d":"0.00"}]
["12.","Kosten für Auszubildende",{"$nulls":7},{"v":0,"d":"0.00"}]
["13.","Um der besonderen Betroffenheit der Reisebüros angemessen Rechnung zu tragen, sind auch Provisionen, die Inhaber von Reisebüros den Reiseveranstaltern aufgrund Corona-bedingter Stornierungen zurückgezahlt haben, den Fixkosten nach Nr. 1 bis 12 gleichgestellt.",{"$nulls":7},{"v":0,"d":"0.00"}]
[null,"= erstattungsfähige Fixkosten",{"$nulls":4},{"$f":"SUM(G13:G25)","v":{"v":0,"d":"0.00"}},{"v":0,"d":"0.00"},{"v":0,"d":"0.00"}]
[]
[]
[null,"Ermittlung der Förderung"]
[null,"Fördersatz (Erstattung der Fixkosten) in %",{"$nulls":4},{"$f":"ErstattungInProzent(G10)","v":0},{"$f":"ErstattungInProzent(H10)","v":0},{"$f":"ErstattungInProzent(I10)","v":0}]
[null,"rechnerischer Erstattungsbetrag",{"$nulls":4},{"$f":"G26*G30/100","v":{"v":0,"d":"0.00"}},{"$f":"H26*H30/100","v":{"v":0,"d":"0.00"}},{"v":0,"d":"0.00"},{"$f":"SUM(G31:I31)","v":{"v":0,"d":"0.00"}}]
[null,{"$f":"IF(P2=1,Q3,IF(P2=2,Q4,IF(P2=3,Q5)))","v":" =Regelförderung (ggfs. gekappt bei maximal mtl. EUR 3.000)"},{"$nulls":4},{"$f":"RegelFoerderung(G31,J3)","v":{"v":0,"d":"0.00"}},{"$f":"RegelFoerderung(H31,J3)","v":{"v":0,"d":"0.00"}},{"$f":"RegelFoerderung(I31,J3)","v":{"v":0,"d":"0.00"}},{"$f":"SUM(G32:I32)","v":{"v":0,"d":"0.00"}}]
[null,"nicht berücksichtigte Fixkosten",{"$nulls":4},{"$f":"NichtBeruecksichtigteFixkosten(G26,G32,G30)","v":{"v":0,"d":"0.00"}},{"$f":"NichtBeruecksichtigteFixkosten(H26,H32,H30)","v":{"v":0,"d":"0.00"}},{"v":0,"d":"0.00"}]
[null,"Erstattungssatz für nicht berücksichtigte Fixkosten in %",{"$nulls":4},{"$f":"ErstattungNichtBeruecksichtigteFixkosten(G33,G32,G10,G31)","v":0},{"$f":"ErstattungNichtBeruecksichtigteFixkosten(H33,H32,H10,H31)","v":0},0]
[null,"zusätzlicher förderfähiger Betrag",{"$nulls":4},{"$f":"G33*(G34/100)","v":{"v":0,"d":"0.00"}},{"$f":"H33*H34/100","v":{"v":0,"d":"0.00"}},{"$f":"I33*I34/100","v":{"v":0,"d":"0.00"}},{"$f":"SUM(G35:I35)","v":{"v":0,"d":"0.00"}}]
[null," = Erstattbare Förderung (ggfs. gekappt bei max. mtl. 50.000 Euro)",{"$nulls":4},{"$f":"IF(G35+G32 > 50000,50000,G35+G32)","v":{"v":0,"d":"0.00"}},{"$f":"IF(H35+H32 > 50000,50000,H35+H32)","v":{"v":0,"d":"0.00"}},{"v":0,"d":"0.00"},{"$f":"SUM(G36:I36)","v":{"v":0,"d":"0.00"}}]